fUST/lending_fUST_20250623
["ID","MTS","AMOUNT","RATE_DAILY","PERIOD"]
[367151135,1750673451786,-460.0,0.00022191,2]
[367151136,1750673451798,-460.0,0.00022191,2]
[367151137,1750673451809,-894.49,0.00022191,2]
[367151138,1750673451820,-2287.98,0.00022191,2]
[367151139,1750673451831,-460.0,0.00022191,2]
[367151140,1750673451842,-702.98,0.00022191,2]
[367151141,1750673451853,-460.0,0.00022191,2]
[367151142,1750673451867,-460.0,0.00022191,2]
[367151143,1750673451878,-1763.52,0.00022191,2]
[367151144,1750673451889,-487.28631749,0.00022191,2]
[367151145,1750673451899,-2124.58,0.00022191,2]
[367151146,1750673451910,-463.64,0.00022191,2]
[367151147,1750673451922,-927.7,0.00022191,2]
[367151148,1750673451932,-460.0,0.00022191,2]
[367151149,1750673451943,-460.0,0.00022191,2]
[367151150,1750673451955,-460.0,0.00022191,2]
[367151151,1750673451965,-460.0,0.00022191,2]
[367151152,1750673451977,-460.0,0.00022191,2]
[367151153,1750673451988,-897.59,0.00022191,2]
[367151154,1750673451999,-3178.68,0.00022191,2]
[367151155,1750673452010,-460.0,0.00022191,2]
[367151156,1750673452021,-460.0,0.00022191,2]
[367151157,1750673452032,-1446.32,0.00022191,2]
[367151158,1750673452043,-460.0,0.00022191,2]
[367151159,1750673452053,-460.0,0.00022191,2]
[367151160,1750673452064,-526.92,0.00022191,2]
[367151161,1750673452075,-460.0,0.00022191,2]
[367151162,1750673452086,-550.94,0.00022191,2]
[367151163,1750673452099,-460.0,0.00022191,2]
[367151164,1750673452114,-16790.11,0.00022191,2]
[367151165,1750673452126,-772.92,0.00022191,2]
[367151166,1750673452136,-460.0,0.00022191,2]
[367151167,1750673452147,-864.04,0.00022191,2]
[367151168,1750673452158,-533.13,0.00022191,2]
[367151169,1750673452169,-460.0,0.00022191,2]
[367151170,1750673452180,-460.0,0.00022191,2]
[367151171,1750673452192,-460.0,0.00022191,2]
[367151172,1750673452203,-1338.91,0.00022191,2]
[367151173,1750673452214,-490.97,0.00022191,2]
[367151174,1750673452224,-2297.29,0.00022191,2]
[367151175,1750673452234,-1202.95,0.00022191,2]
[367151176,1750673452245,-1866.18,0.00022191,2]
[367151177,1750673452256,-460.0,0.00022191,2]
[367151178,1750673452267,-151.0,0.00022191,7]
[367151179,1750673452278,-4118.4,0.00022191,2]
[367151180,1750673452290,-460.0,0.00022191,2]
[367151181,1750673452300,-460.0,0.00022191,2]
[367151182,1750673452311,-460.0,0.00022191,2]
[367151183,1750673452322,-1177.06,0.00022191,2]
[367151184,1750673452332,-460.0,0.00022191,2]
[367151185,1750673452343,-1623.63,0.00022191,2]
[367151186,1750673452356,-460.0,0.00022191,2]
[367151187,1750673452368,-460.0,0.00022191,2]
[367151188,1750673452378,-460.0,0.00022191,2]
[367151189,1750673452389,-2306.56,0.00022191,2]
[367151190,1750673452400,-769.57,0.00022191,2]
[367151191,1750673452411,-5898.42,0.00022191,2]
[367151192,1750673452422,-460.0,0.00022191,2]
[367151193,1750673452435,-460.0,0.00022191,2]
[367151194,1750673452447,-2866.35,0.00022191,2]
[367151195,1750673452458,-151.0,0.00022191,7]
[367151196,1750673452469,-151.0,0.00022191,7]
[367151197,1750673452480,-460.0,0.00022191,2]
[367151198,1750673452491,-151.0,0.00022191,7]
[367151199,1750673452502,-460.0,0.00022191,2]
[367151200,1750673452512,-592.05,0.00022191,2]
[367151201,1750673452523,-3079.46,0.00022191,2]
[367151202,1750673452534,-460.0,0.00022191,2]
[367151203,1750673452545,-460.0,0.00022191,2]
[367151204,1750673452557,-460.0,0.00022191,2]
[367151205,1750673452567,-804.0,0.00022191,2]
[367151206,1750673452579,-460.0,0.00022191,2]
[367151207,1750673452591,-1019.22,0.00022191,2]
[367151208,1750673452605,-460.0,0.00022191,2]
[367151209,1750673452616,-460.0,0.00022191,2]
[367151210,1750673452626,-768.12,0.00022191,2]
[367151211,1750673452637,-1052.35,0.00022191,2]
[367151212,1750673452648,-1930.85,0.00022191,2]
[367151213,1750673452659,-537.41,0.00022191,2]
[367151214,1750673452670,-460.0,0.00022191,2]
[367151215,1750673452681,-510.03,0.00022191,2]
[367151216,1750673452692,-500.0,0.00022191,2]
[367151217,1750673452703,-1047.5,0.00022191,2]
[367151218,1750673452715,-518.87,0.00022191,2]
[367151219,1750673452726,-460.0,0.00022191,2]
[367151220,1750673452736,-2674.63,0.00022191,2]
[367151221,1750673452747,-460.0,0.00022191,2]
[367151222,1750673452758,-460.0,0.00022191,2]
[367151223,1750673452769,-625.15,0.00022191,2]
[367151224,1750673452780,-981.85,0.00022191,2]
[367151225,1750673452791,-2360.0,0.00022191,2]
[367151226,1750673452801,-866.49,0.00022191,2]
[367151227,1750673452812,-460.0,0.00022191,2]
[367151228,1750673452823,-473.13153436,0.00022191,2]
[367151229,1750673452833,-151.0,0.00022191,7]
[367151230,1750673452843,-151.0,0.00022191,7]
[367151231,1750673452855,-667.32,0.00022191,2]
[367151232,1750673452866,-151.0,0.00022191,7]
[367151233,1750673452876,-541.16748903,0.00022191,2]
[367151234,1750673452886,-912.14,0.00022191,2]
[367151235,1750673452897,-597.57,0.00022191,2]
[367151236,1750673452908,-460.0,0.00022191,2]
[367151237,1750673452918,-460.0,0.00022191,2]
[367151238,1750673452928,-151.0,0.00022191,7]
[367151239,1750673452940,-299.478218,0.00022191,7]
[367151240,1750673452950,-460.0,0.00022191,2]
[367151241,1750673452961,-460.0,0.00022191,2]
[367151242,1750673453255,-7623.29,0.00022191,2]
[367151243,1750673453279,-460.0,0.00022191,2]
[367151244,1750673453293,-971.46,0.00022191,2]
[367151245,1750673453302,-4142.4,0.00022191,2]
[367151246,1750673453312,-460.0,0.00022191,2]
[367151247,1750673453321,-460.0,0.00022191,2]
[367151248,1750673453330,-460.0,0.00022191,2]
[367151249,1750673453340,-999.38,0.00022191,2]
[367151250,1750673453350,-460.0,0.00022191,2]
[367151251,1750673453361,-460.0,0.00022191,2]
[367151252,1750673453371,-460.0,0.00022191,2]
[367151253,1750673453381,-287.77885334,0.00022191,2]
[367151254,1750673453391,-792.81,0.00022191,2]
[367151255,1750673453400,-5686.32,0.00022191,2]
[367151256,1750673453409,-1742.0,0.00022191,2]
[367151257,1750673453418,-1222.55,0.00022191,2]
[367151258,1750673453428,-500.0,0.00022191,2]
[367151259,1750673453438,-585.02,0.00022191,2]
[367151260,1750673453447,-658.51,0.00022191,2]
[367151261,1750673453456,-460.0,0.00022191,2]
[367151262,1750673453466,-460.0,0.00022191,2]
[367151263,1750673453475,-460.0,0.00022191,2]
[367151264,1750673453485,-471.0,0.00022191,2]
[367151265,1750673453494,-641.78,0.00022191,2]
[367151266,1750673453503,-460.0,0.00022191,2]
[367151267,1750673453513,-582.43,0.00022191,2]
[367151268,1750673453522,-12553.69357174,0.00022193,3]
[367151269,1750673453531,-213.63163053,0.00022193,3]
[367151270,1750673453540,-846.53928378,0.00022193,3]
[367151271,1750673453550,-151.0,0.000222,5]
[367151272,1750673453559,-151.0,0.000222,5]
[367151273,1750673453568,-150.0,0.00022202,2]
[367151274,1750673453577,-150.0,0.00022202,2]
[367151275,1750673453587,-150.0,0.00022202,2]
[367151276,1750673453596,-150.0,0.00022202,2]
[367151277,1750673453606,-175.918,0.00022202,2]
[367151278,1750673453616,-965.0,0.00022202,2]
[367151279,1750673453625,-654.0,0.00022202,2]
[367151280,1750673453635,-2161.0,0.00022202,2]
[367151281,1750673453644,-406.0,0.00022202,2]
[367151282,1750673453654,-406.0,0.00022202,2]
[367151283,1750673453663,-151.0,0.000223,10]
[367151284,1750673453673,-151.0,0.000223,8]
[367151285,1750673453682,-559.0,0.00022393,2]
[367151286,1750673453692,-48294.09430166,0.000224,5]
[367151287,1750673453701,-151.0,0.000224,7]
[367151288,1750673453710,-151.0,0.000224,7]
[367151289,1750673453720,-151.0,0.000224,7]
[367151290,1750673453730,-151.0,0.000224,7]
[367151291,1750673453739,-151.0,0.00022438,2]
[367151292,1750673453750,-151.0,0.00022438,2]
[367151293,1750673453760,-151.0,0.00022438,2]
[367151294,1750673453770,-151.0,0.00022438,2]
[367151295,1750673453779,-151.0,0.00022438,2]
[367151296,1750673453788,-151.0,0.00022438,2]
[367151297,1750673453798,-151.0,0.00022438,2]
[367151298,1750673453807,-151.000001,0.00022438,2]
[367151299,1750673453817,-151.0,0.00022438,2]
[367151300,1750673453826,-151.0,0.00022438,2]
[367151301,1750673453836,-151.0,0.00022438,2]
[367151302,1750673453846,-151.0,0.00022438,2]
[367151303,1750673453856,-151.0,0.00022438,2]
[367151304,1750673453865,-151.0,0.00022438,2]
[367151305,1750673453875,-151.0,0.00022438,2]
[367151306,1750673453885,-151.0,0.00022438,2]
[367151307,1750673453894,-151.0,0.00022438,2]
[367151308,1750673453904,-151.0,0.00022438,2]
[367151309,1750673453913,-151.0,0.00022438,2]
[367151310,1750673453922,-151.0,0.00022438,2]
[367151311,1750673453931,-151.0,0.00022438,2]
[367151312,1750673453941,-151.0,0.00022438,2]
[367151313,1750673453951,-151.0,0.00022438,2]
[367151314,1750673453961,-500.0,0.00022438,2]
[367151315,1750673453970,-151.0,0.00022438,2]
[367151316,1750673453980,-151.0,0.00022438,2]
[367151317,1750673453989,-186.49757628,0.00022438,2]
[367151318,1750673454287,-11.50242372,0.00022438,2]
[367151319,1750673454296,-151.0,0.00022438,2]
[367151320,1750673454305,-151.0,0.00022438,2]
[367151321,1750673454314,-153.0,0.00022438,2]
[367151322,1750673454324,-442.3346339,0.00022438,2]
[367151323,1750673454333,-153.0,0.00022438,2]
[367151324,1750673454342,-153.0,0.00022438,2]
[367151325,1750673454351,-460.0,0.00022465,2]
[367151326,1750673454365,-455.26294238,0.00022465,2]
[367151327,1750673454383,-32.04705762,0.00022465,2]
[367151328,1750673454394,-460.0,0.00022465,2]
[367151329,1750673454404,-460.0,0.00022465,2]
[367151330,1750673454413,-471.66,0.00022465,2]
[367151331,1750673454423,-460.0,0.00022465,2]
[367151332,1750673454432,-460.0,0.00022465,2]
[367151333,1750673454441,-460.0,0.00022465,2]
[367151334,1750673454450,-460.0,0.00022465,2]
[367151335,1750673454461,-189.60997956,0.00022465,2]
[367151336,1750673454780,-1402.5,0.00021907,10]
[367151337,1750673454791,-460.0,0.00021917,2]
[367151338,1750673454800,-583.53,0.00022191,2]
[367151339,1750673454810,-460.0,0.00022191,2]
[367151340,1750673454820,-377.2022589,0.00022465,2]
[367151341,1750673454829,-598.14986075,0.00022465,2]
[367151342,1750673454839,-177.78707595,0.00022465,2]
[367151343,1750673498190,150.0,0.00020091,2]
[367151344,1750673500329,150.0,0.00021495,30]
[367151346,1750673575326,150.0,0.00021474,30]
[367151347,1750673575720,150.0,0.00023426,30]
[367151348,1750673654423,27067.89467905,0.00019102,2]
[367151349,1750673654443,32000.0,0.00019102,2]
[367151350,1750673654478,32000.0,0.00019102,2]
[367151351,1750673654514,32000.0,0.00019102,2]
[367151352,1750673654535,32000.0,0.00019102,2]
[367151353,1750673654556,32000.0,0.00019102,2]
[367151354,1750673654576,32000.0,0.00019102,2]
[367151355,1750673654597,32000.0,0.00019102,2]
[367151356,1750673654617,32000.0,0.00019102,2]
[367151357,1750673654638,32000.0,0.00019102,2]
[367151358,1750673654660,32000.0,0.00019102,2]
[367151359,1750673654682,32000.0,0.00019102,2]
[367151360,1750673654702,32000.0,0.00019102,2]
[367151361,1750673654722,32000.0,0.00019102,2]
[367151362,1750673654742,32000.0,0.00019102,2]
[367151363,1750673654763,32000.0,0.00019102,2]
[367151364,1750673654784,32000.0,0.00019102,2]
[367151365,1750673654805,32000.0,0.00019102,2]
[367151366,1750673654826,32000.0,0.00019102,2]
[367151367,1750673654856,32000.0,0.00019102,2]
[367151368,1750673654883,32000.0,0.00019102,2]
[367151369,1750673654907,32000.0,0.00019102,2]
[367151370,1750673654929,32000.0,0.00019102,2]
[367151371,1750673654951,32000.0,0.00019102,2]
[367151372,1750673654973,32000.0,0.00019102,2]
[367151373,1750673654996,32000.0,0.00019102,2]
[367151374,1750673655018,32000.0,0.00019102,2]
[367151375,1750673655048,1140932.10532141,0.00019102,2]
[367151376,1750673659958,150.0,0.00021478,30]
[367151377,1750673660404,150.0,0.00023431,30]
[367151380,1750673739830,150.0,0.00022638,30]
[367151381,1750673821556,150.0,0.00023349,30]
[367151382,1750673858878,-215.0,0.00019506,2]
[367151384,1750673895119,-165.39116841,0.00019506,2]
[367151385,1750673901661,150.0,0.00022503,30]
[367151386,1750673942630,-160.0,0.00019506,2]
[367151387,1750673982775,150.0,0.0002145,30]
[367151388,1750673983222,150.0,0.000234,30]
[367151389,1750673985099,-151.0,0.00019503,2]
[367151390,1750674004331,-161.31406248,0.00019308,2]
[367151391,1750674004356,-48.99798036,0.00019503,2]
[367151392,1750674007352,-133.87158916,0.00019503,2]
[367151393,1750674007376,-27.20342285,0.00019506,2]
[367151394,1750674032923,-157.606812,0.00019506,2]
[367151395,1750674037592,167.68051153,0.00018921,2]
[367151396,1750674046654,-153.64103414,0.00019311,2]
[367151397,1750674062260,150.0,0.00022438,30]
[367151398,1750674084983,-257.93901646,0.00019311,2]
[367151399,1750674103522,-4512.0,0.00019311,2]
[367151400,1750674121693,-76.4199494,0.00019311,2]
[367151401,1750674121715,-142.06791228,0.00019902,2]
[367151402,1750674136274,-151.0,0.00019703,2]
[367151403,1750674142749,150.0,0.00021444,30]
[367151404,1750674143821,150.0,0.00023393,30]
[367151405,1750674170373,-167.31909194,0.00019703,2]
[367151406,1750674214794,-236.03405117,0.00019702,2]
[367151407,1750674221556,150.0,0.00021466,30]
[367151408,1750674222008,150.0,0.00023418,30]
[367151409,1750674262689,-197.13608938,0.00019703,2]
[367151410,1750674265491,-197.13608938,0.00019703,2]
[367151411,1750674298868,150.0,0.00021497,30]
[367151412,1750674299272,150.0,0.00023451,30]
[367151421,1750674311027,-153.32499634,0.00019702,2]
[367151422,1750674311053,-26.78129311,0.00019703,2]
[367151423,1750674323320,-151.52820238,0.00019506,2]
[367151424,1750674338879,-204.0753916,0.00019233,2]
[367151425,1750674339598,169.67358292,0.00018921,2]
[367151426,1750674354860,-154.0,0.00019233,2]
[367151428,1750674380427,150.0,0.00021592,30]
[367151429,1750674380841,150.0,0.00023555,30]
[367151430,1750674401947,150.0,0.000189,2]
[367151432,1750674448127,-70.3074573,0.00019233,2]
[367151433,1750674448150,-4848.47179762,0.00019506,2]
[367151434,1750674448173,-23.08625582,0.00019902,2]
[367151435,1750674448196,-1200.0,0.00020099,2]
[367151436,1750674448219,-2784.33238866,0.000201,2]
[367151437,1750674448243,-216.78547583,0.0002042,2]
[367151438,1750674456513,-269.0902228,0.00019604,2]
[367151439,1750674457391,150.0,0.00021582,30]
[367151440,1750674458011,150.0,0.00023544,30]
[367151443,1750674473139,301.50254374,0.00018653,2]
[367151451,1750674483437,197.400991,0.00013699,2]
[367151456,1750674500289,-168.76597768,0.0001938,2]
[367151464,1750674519933,-28.37011172,0.0001938,2]
[367151465,1750674519956,-138.25832418,0.000195,2]
[367151470,1750674533338,150.0,0.00021584,30]
[367151471,1750674533736,150.0,0.00023546,30]
[367151472,1750674533786,-188.30358171,0.00019334,2]
[367151473,1750674544210,-26.69641829,0.00019334,2]
[367151474,1750674544234,-161.60716342,0.000195,2]
[367151475,1750674545129,-1700.1345124,0.000195,2]
[367151476,1750674545150,-219.88884539,0.00019504,2]
[367151477,1750674545172,-4730.9097772,0.00019604,2]
[367151478,1750674545193,-219.88884535,0.00019734,2]
[367151479,1750674545215,-54.70154769,0.00019792,2]
[367151483,1750674554116,-178.71044331,0.00019792,2]
[367151484,1750674554138,-219.88884535,0.00019963,2]
[367151485,1750674554160,-197.400991,0.00020187,2]
[367151486,1750674554181,-219.88884535,0.00020193,2]
[367151487,1750674554203,-300.0,0.0002042,2]
[367151488,1750674554223,-2599.5904381,0.00020421,2]
[367151489,1750674554244,-219.88884535,0.00020422,2]
[367151490,1750674554264,-300.0,0.00020422,2]
[367151491,1750674554285,-300.0,0.00020423,2]
[367151492,1750674554305,-161.99624106,0.00020423,2]
[367151493,1750674554327,-1472.09069946,0.00020425,2]
[367151495,1750674563085,-3078.7314663,0.00020221,2]
[367151496,1750674608133,150.0,0.00021617,30]
[367151497,1750674608713,150.0,0.00023582,30]
[367151519,1750674632763,-155.43160559,0.00020221,2]
[367151520,1750674632772,-300.0,0.00020424,2]
[367151521,1750674632781,-470.0,0.00020424,2]
[367151522,1750674632791,-23427.90930054,0.00020425,2]
[367151523,1750674632800,-207.4,0.00021359,2]
[367151524,1750674632809,-500.0,0.00021359,2]
[367151525,1750674632818,-325.2057336,0.00021359,2]
[367151526,1750674632827,-250.0,0.00021447,2]
[367151527,1750674632836,-153.32499634,0.00021544,2]
[367151528,1750674632846,-731.6430826,0.00021644,2]
[367151529,1750674632862,-365.8215413,0.00021644,2]
[367151530,1750674632875,-365.8215413,0.00021644,2]
[367151531,1750674632886,-365.8215413,0.00021644,2]
[367151532,1750674632896,-194.53220523,0.00021817,2]
[367151533,1750674632905,-220.0,0.00021832,2]
[367151534,1750674632915,-354.5343632,0.0002189,2]
[367151535,1750674632925,-574.5372799,0.0002189,2]
[367151536,1750674632934,-398.0082417,0.0002189,2]
[367151537,1750674632944,-1000.0,0.00021907,2]
[367151538,1750674632953,-500.0,0.00021916,2]
[367151539,1750674632963,-177.07532746,0.00021916,2]
[367151540,1750674632972,-500.0,0.00021916,2]
[367151541,1750674632982,-500.0,0.00021916,2]
[367151542,1750674632992,-237.74743853,0.00021916,2]
[367151543,1750674633002,-500.0,0.00021916,2]
[367151544,1750674633011,-500.0,0.00021916,2]
[367151545,1750674633021,-500.0,0.00021916,2]
[367151546,1750674633031,-500.0,0.00021916,2]
[367151547,1750674633041,-532.48837688,0.00021916,2]
[367151548,1750674633052,-500.0,0.00021916,2]
[367151549,1750674633062,-500.0,0.00021916,2]
[367151550,1750674633072,-500.0,0.00021916,2]
[367151551,1750674633082,-500.0,0.00021916,2]
[367151552,1750674633092,-500.0,0.00021916,2]
[367151553,1750674633102,-450.0,0.00021916,2]
[367151554,1750674633111,-208.05602935,0.00021916,2]
[367151555,1750674633121,-520.18784168,0.00021916,2]
[367151556,1750674633131,-1000.0,0.00021916,2]
[367151557,1750674633142,-1000.0,0.00021916,2]
[367151558,1750674633152,-1000.0,0.00021916,2]
[367151559,1750674633162,-1000.0,0.00021916,2]
[367151560,1750674633172,-1000.0,0.00021916,2]
[367151561,1750674633182,-1000.0,0.00021916,2]
[367151562,1750674633193,-1000.0,0.00021916,2]
[367151563,1750674633204,-1000.0,0.00021916,2]
[367151564,1750674633215,-1000.0,0.00021916,2]
[367151565,1750674633224,-1000.0,0.00021916,2]
[367151566,1750674633235,-1000.0,0.00021916,2]
[367151567,1750674633245,-1000.0,0.00021916,2]
[367151568,1750674633256,-1000.0,0.00021916,2]
[367151569,1750674633266,-1000.0,0.00021916,2]
[367151570,1750674633276,-1000.0,0.00021916,2]
[367151571,1750674633286,-1000.0,0.00021916,2]
[367151572,1750674633296,-1000.0,0.00021916,2]
[367151573,1750674633306,-679.66222609,0.00021916,2]
[367151574,1750674633317,-169.29,0.00021916,2]
[367151575,1750674633327,-460.0,0.00021917,2]
[367151576,1750674633337,-460.0,0.00021917,2]
[367151577,1750674633347,-460.0,0.00021917,2]
[367151578,1750674633357,-460.0,0.00021917,2]
[367151579,1750674633366,-460.0,0.00021917,2]
[367151580,1750674633377,-478.62,0.00021917,2]
[367151581,1750674633387,-151.0,0.00021917,2]
[367151582,1750674633397,-460.0,0.00021917,2]
[367151583,1750674633407,-460.0,0.00021917,2]
[367151584,1750674633416,-588.81956853,0.00021917,2]
[367151585,1750674633426,-460.0,0.00021917,2]
[367151586,1750674633435,-460.0,0.00021917,2]
[367151587,1750674633445,-460.0,0.00021917,2]
[367151588,1750674633455,-460.0,0.00021917,2]
[367151589,1750674633465,-460.0,0.00021917,2]
[367151590,1750674633479,-460.0,0.00021917,2]
[367151591,1750674633488,-455.27033712,0.00021917,2]
[367151592,1750674633498,-460.0,0.00021917,2]
[367151593,1750674633508,-460.0,0.00021917,2]
[367151594,1750674633522,-388.39046879,0.00021917,2]
[367151595,1750674633532,-460.0,0.00021917,2]
[367151596,1750674633542,-460.0,0.00021917,2]
[367151597,1750674633552,-460.0,0.00021917,2]
[367151598,1750674633563,-460.0,0.00021917,2]
[367151599,1750674633573,-460.0,0.00021917,2]
[367151600,1750674633583,-460.0,0.00021917,2]
[367151601,1750674633596,-1000.0,0.00021917,2]
[367151602,1750674633607,-460.0,0.00021917,2]
[367151603,1750674633617,-460.0,0.00021917,2]
[367151604,1750674633627,-460.0,0.00021917,2]
[367151605,1750674633637,-430.0,0.00021917,2]
[367151606,1750674633646,-190.40750909,0.00021917,2]
[367151607,1750674633656,-460.0,0.00021917,2]
[367151608,1750674633667,-487.37,0.00021917,2]
[367151609,1750674633676,-664.44,0.00021917,2]
[367151610,1750674633687,-460.0,0.00021917,2]
[367151611,1750674633697,-460.0,0.00021917,2]
[367151612,1750674633707,-460.0,0.00021917,2]
[367151613,1750674633717,-460.0,0.00021917,2]
[367151614,1750674633727,-460.0,0.00021917,2]
[367151615,1750674633738,-936.55,0.00021917,2]
[367151616,1750674633748,-460.0,0.00021917,2]
[367151617,1750674633758,-460.0,0.00021917,2]
[367151618,1750674633768,-460.0,0.00021917,2]
[367151619,1750674633778,-460.0,0.00021917,2]
[367151620,1750674633789,-460.0,0.00021917,2]
[367151621,1750674633799,-460.0,0.00021917,2]
[367151622,1750674633809,-460.0,0.00021917,2]
[367151623,1750674633820,-460.0,0.00021917,2]
[367151624,1750674633830,-460.0,0.00021917,2]
[367151625,1750674633840,-436.85094415,0.00021917,2]
[367151626,1750674633850,-460.0,0.00021917,2]
[367151627,1750674633860,-460.0,0.00021917,2]
[367151628,1750674633870,-460.0,0.00021917,2]
[367151629,1750674633880,-460.0,0.00021917,2]
[367151630,1750674633892,-408.7478443,0.00021917,2]
[367151631,1750674633901,-460.0,0.00021917,2]
[367151632,1750674633911,-504.37,0.00021917,2]
[367151633,1750674633921,-396.47514336,0.00021917,2]
[367151634,1750674633934,-460.0,0.00021917,2]
[367151635,1750674633944,-460.0,0.00021917,2]
[367151636,1750674633953,-739.2,0.00021917,2]
[367151637,1750674633966,-460.0,0.00021917,2]
[367151638,1750674633977,-460.0,0.00021917,2]
[367151639,1750674633987,-460.0,0.00021917,2]
[367151640,1750674633997,-460.0,0.00021917,2]
[367151641,1750674634007,-460.0,0.00021917,2]
[367151642,1750674634017,-460.0,0.00021917,2]
[367151643,1750674634027,-790.86,0.00021917,2]
[367151644,1750674634037,-460.0,0.00021917,2]
[367151645,1750674634047,-460.0,0.00021917,2]
[367151646,1750674634066,-197.12501723,0.00021917,2]
[367151647,1750674634078,-460.0,0.00021917,2]
[367151648,1750674634088,-460.0,0.00021917,2]
[367151649,1750674634098,-460.0,0.00021917,2]
[367151650,1750674634108,-460.0,0.00021917,2]
[367151651,1750674634117,-743.27,0.00021917,2]
[367151652,1750674634127,-460.0,0.00021917,2]
[367151653,1750674634138,-460.0,0.00021917,2]
[367151654,1750674634148,-460.0,0.00021917,2]
[367151655,1750674634157,-460.0,0.00021917,2]
[367151656,1750674634167,-460.0,0.00021917,2]
[367151657,1750674634177,-460.0,0.00021917,2]
[367151658,1750674634187,-460.0,0.00021917,2]
[367151659,1750674634196,-463.58991103,0.00021917,2]
[367151660,1750674634206,-661.11,0.00021917,2]
[367151661,1750674634215,-460.0,0.00021917,2]
[367151662,1750674634225,-460.0,0.00021917,2]
[367151663,1750674634234,-500.0,0.00021917,2]
[367151664,1750674634245,-460.0,0.00021917,2]
[367151665,1750674634255,-485.24,0.00021917,2]
[367151666,1750674634264,-460.47395517,0.00021917,2]
[367151667,1750674634274,-460.0,0.00021917,2]
[367151668,1750674634284,-460.0,0.00021917,2]
[367151669,1750674634293,-460.0,0.00021917,2]
[367151670,1750674634302,-700.25,0.00021917,2]
[367151671,1750674634311,-1333.15,0.00021917,2]
[367151672,1750674634321,-460.0,0.00021917,2]
[367151673,1750674634330,-460.0,0.00021917,2]
[367151674,1750674634339,-460.0,0.00021917,2]
[367151675,1750674634348,-460.0,0.00021917,2]
[367151676,1750674634358,-500.463091,0.00021917,2]
[367151677,1750674634367,-460.0,0.00021917,2]
[367151678,1750674634377,-460.0,0.00021917,2]
[367151679,1750674634386,-460.0,0.00021917,2]
[367151680,1750674634395,-460.0,0.00021917,2]
[367151681,1750674634405,-460.0,0.00021917,2]
[367151682,1750674634414,-460.9054198,0.00021917,2]
[367151683,1750674634424,-460.0,0.00021917,2]
[367151684,1750674634433,-500.0,0.00021917,2]
[367151685,1750674634442,-369.39682644,0.00021917,2]
[367151686,1750674634451,-361.00997491,0.00021917,2]
[367151687,1750674634460,-460.0,0.00021917,2]
[367151688,1750674634470,-460.0,0.00021917,2]
[367151689,1750674634479,-460.0,0.00021917,2]
[367151690,1750674634489,-564.47,0.00021917,2]
[367151691,1750674634498,-460.0,0.00021917,2]
[367151692,1750674634508,-1392.24,0.00021917,2]
[367151693,1750674634527,-460.0,0.00021917,2]
[367151694,1750674634536,-460.0,0.00021917,2]
[367151695,1750674634546,-460.0,0.00021917,2]
[367151696,1750674634556,-699.94,0.00021917,2]
[367151697,1750674634566,-663.04,0.00021917,2]